[Event "ROU-chT 1st League 2019"]
[Site "Mamaia"]
[Date "2019.09.25"]
[Round "5.26"]
[White "Sivuk, Vitaly"]
[Black "Gavrilescu, David"]
[Result "1-0"]
[ECO "E54"]
[WhiteElo "2559"]
[BlackElo "2451"]
[Annotator "ChessBase"]
[PlyCount "81"]
[EventDate "2019.09.21"]
[EventType "team-tourn"]
[EventCountry "ROU"]
[SourceTitle "playchess.com"]
[Source "ChessBase"]
[SourceQuality "1"]
[TimeControl "40/5400+30:1800+30"]

1. d4 {[%emt 0:00:03]} d5 {[%emt 0:00:00]} 2. c4 {[%emt 0:00:10]} e6 {[%emt 0:00:13]} 3. Nc3 {[%emt 0:00:09]} Bb4 {[%emt 0:00:28]} 4. e3 {[%emt 0:00:16]} Nf6 {[%emt 0:00:30]} 5. Nf3 {[%emt 0:00:12]} O-O {[%emt 0:01:16]} 6. Bd3 {[%emt 0:00:07]} dxc4 {[%emt 0:01:03]} 7. Bxc4 {[%emt 0:00:08]} c5 {[%emt 0:00:08]} 8. O-O {[%emt 0:00:09]} Nc6 {[%emt 0:00:17]} 9. a3 {[%emt 0:00:26]} Ba5 {[%emt 0:00:22]} 10. Qd3 {[%emt 0:00:25]} a6 {[%emt 0:00:44]} 11. Ne4 {[%emt 0:00:22]} b5 {[%emt 0:05:49]} 12. Nxf6+ {[%emt 0:00:18]} Qxf6 {[%emt 0:00:06]} 13. Qe4 {[%emt 0:00:07]} Bb7 {[%emt 0:00:21]} 14. Bd3 {[%emt 0:00:08]} g6 {[%emt 0:00:39]} 15. dxc5 {[%emt 0:00:08]} Nb4 {[%emt 0:03:29]} 16. Qe5 {[%emt 0:00:15]} Qxe5 {[%emt 0:00:53]} 17. Nxe5 {[%emt 0:00:07]} Nxd3 {[%emt 0:00:12]} 18. Nxd3 {[%emt 0:00:06]} Rfd8 {[%emt 0:00:19]} 19. Ne5 {[%emt 0:00:16]} Bc7 {[%emt 0:00:12]} 20. Nf3 {[%emt 0:00:06]} Bxf3 {[%emt 0:00:30]} 21. gxf3 {[%emt 0:00:06]} Be5 {[%emt 0:00:08]} 22. Rb1 {[%emt 0:01:52]} Rd3 {[%emt 0:04:32]} 23. f4 {[%emt 0:20:36]} Bg7 {[%emt 0:02:54]} 24. Re1 {[%emt 0:03:10]} a5 {[%emt 0:12:35]} 25. e4 {[%emt 0:02:03]} Bd4 {[%emt 0:13:16]} 26. Be3 {[%emt 0:01:04]} a4 {[%emt 0:03:18]} 27. Kf1 {[%emt 0:08:36]} Rd8 {[%emt 0:11:58]} 28. c6 {[%emt 0:17:30]} Bxe3 {[%emt 0:06:08]} 29. Rxe3 {[%emt 0:00:24]} R3d4 {[%emt 0:02:09]} 30. Rc1 {[%emt 0:06:07]} Rc8 {[%emt 0:01:55]} 31. Rc5 {[%emt 0:00:53]} b4 {[%emt 0:06:15]} 32. Ke2 {[%emt 0:03:15]} Kf8 {[%emt 0:03:23]} 33. Rd3 {[%emt 0:03:36]} Rxe4+ {[%emt 0:05:10]} 34. Kf3 {[%emt 0:00:06]} f5 {[%emt 0:00:53]} 35. Rd7 {[%emt 0:00:11]} bxa3 {[%emt 0:00:07]} 36. bxa3 {[%emt 0:00:06]} Ke8 {[%emt 0:00:07]} 37. Rxh7 {[%emt 0:00:30]} Kd8 {[%emt 0:00:08]} 38. c7+ {[%emt 0:01:29]} Ke8 {[%emt 0:00:06]} 39. Rc6 {[%emt 0:00:06]} Re1 {[%emt 0:00:45]} 40. Rd6 {[%emt 0:00:00]} Rc1 {[%emt 0:00:00]} 41. Rd8+ {[%emt 0:00:37]} 1-0

[Event "ROU-chT 1st League 2019"]
[Site "Mamaia"]
[Date "2019.09.25"]
[Round "5.27"]
[White "Carmaciu, Lucian-Catalin"]
[Black "Georgescu, Tiberiu-Marian"]
[Result "1/2-1/2"]
[ECO "C54"]
[WhiteElo "2375"]
[BlackElo "2508"]
[Annotator "ChessBase"]
[PlyCount "30"]
[EventDate "2019.09.21"]
[EventType "team-tourn"]
[EventCountry "ROU"]
[SourceTitle "playchess.com"]
[Source "ChessBase"]
[SourceQuality "1"]
[TimeControl "40/5400+30:1800+30"]

1. e4 {[%emt 0:00:00]} e5 {[%emt 0:00:00]} 2. Nf3 {[%emt 0:00:00]} Nc6 {[%emt 0:00:10]} 3. Bc4 {[%emt 0:00:05]} Bc5 {[%emt 0:00:15]} 4. c3 {[%emt 0:00:20]} Nf6 {[%emt 0:00:09]} 5. d3 {[%emt 0:00:14]} d6 {[%emt 0:01:10]} 6. Bg5 {[%emt 0:01:33]} h6 {[%emt 0:02:54]} 7. Bh4 {[%emt 0:00:05]} g5 {[%emt 0:10:48]} 8. Bg3 {[%emt 0:00:06]} Qe7 {[%emt 0:10:59]} 9. a4 {[%emt 0:07:45]} a5 {[%emt 0:02:25]} 10. Nbd2 {[%emt 0:00:40]} Nh5 {[%emt 0:09:45]} 11. Nb3 {[%emt 0:22:58]} Bb6 {[%emt 0:08:56]} 12. Qe2 {[%emt 0:24:16]} Bg4 {[%emt 0:05:11]} 13. h3 {[%emt 0:00:23]} Be6 {[%emt 0:03:54]} 14. Nfd2 {[%emt 0:03:02]} Nxg3 {[%emt 0:07:22]} 15. fxg3 {[%emt 0:00:03]} O-O-O {[%emt 0:03:41]} 1/2-1/2

[Event "ROU-chT 1st League 2019"]
[Site "Mamaia"]
[Date "2019.09.25"]
[Round "5.28"]
[White "David, Alexandru-Vasile"]
[Black "Gilea, Lucian"]
[Result "1-0"]
[ECO "A80"]
[WhiteElo "2424"]
[BlackElo "2291"]
[Annotator "NA"]
[PlyCount "79"]
[EventDate "2019.09.21"]
[EventType "team-tourn"]
[EventCountry "ROU"]
[SourceTitle "playchess.com"]
[Source "ChessBase"]
[SourceQuality "1"]
[TimeControl "40/5400+30:1800+30"]

1. d4 {[%emt 0:00:35]} f5 {[%emt 0:00:35]} 2. Bg5 {[%emt 0:00:00]} h6 {[%emt 0:00:00]} 3. Bd2 {[%emt 0:01:43]} Nf6 {[%emt 0:00:53]} 4. e3 {[%emt 0:00:31]} d6 {[%emt 0:06:45]} 5. Nc3 {[%emt 0:01:54]} e6 {[%emt 0:06:22]} 6. Be2 {[%emt 0:02:06]} g6 {[%emt 0:00:20]} 7. Nh3 {[%emt 0:00:07]} Qe7 {[%emt 0:04:41]} 8. Nf4 {[%emt 0:14:32]} Qf7 {[%emt 0:00:03]} 9. O-O {[%emt 0:00:09]} e5 {[%emt 0:01:43]} 10. dxe5 {[%emt 0:03:05]} dxe5 {[%emt 0:00:03]} 11. Nd3 {[%emt 0:00:28]} Nc6 {[%emt 0:00:29]} 12. f4 {[%emt 0:01:28]} exf4 {[%emt 0:10:09]} 13. exf4 {[%emt 0:01:07]} Bg7 {[%emt 0:02:51]} 14. Ne5 {[%emt 0:08:11]} Nxe5 {[%emt 0:01:59]} 15. fxe5 {[%emt 0:03:30]} Nd7 {[%emt 0:02:48]} 16. Re1 {[%emt 0:09:16]} Qe6 {[%emt 0:11:51]} 17. Bf3 {[%emt 0:08:11]} c6 {[%emt 0:02:26]} 18. Bf4 {[%emt 0:01:08]} O-O {[%emt 0:00:40]} 19. Nd5 {[%emt 0:00:09]} Rb8 {[%emt 0:07:15]} 20. Bg3 {[%emt 0:09:20]} Nxe5 {[%emt 0:17:38]} 21. Kh1 {[%emt 0:07:07]} Rd8 {[%emt 0:03:29]} 22. Qe2 {[%emt 0:07:21]} Nxf3 {[%emt 0:05:40]} 23. Ne7+ {[%emt 0:00:40]} Kf7 {[%emt 0:02:18]} 24. Qxf3 {[%emt 0:00:15]} Qc4 {[%emt 0:00:10]} 25. Bxb8 {[%emt 0:00:10]} Be6 {[%emt 0:00:02]} 26. Nxg6 {[%emt 0:04:04]} Kxg6 {[%emt 0:00:24]} 27. Be5 {[%emt 0:00:26]} Bf8 {[%emt 0:01:43]} 28. b3 {[%emt 0:02:10]} Qxc2 {[%emt 0:00:57]} 29. Qg3+ {[%emt 0:01:35]} Kh7 {[%emt 0:01:03]} 30. Bf6 {[%emt 0:01:48]} Re8 {[%emt 0:00:50]} 31. Rad1 {[%emt 0:00:59]} Bf7 {[%emt 0:01:06]} 32. Rd7 {[%emt 0:01:39]} Rxe1+ {[%emt 0:00:15]} 33. Qxe1 {[%emt 0:00:04]} Kg6 {[%emt 0:00:19]} 34. Bd4 {[%emt 0:01:31]} f4 {[%emt 0:00:24]} 35. h3 {[%emt 0:01:16]} Qf5 {[%emt 0:02:09]} 36. Rd8 {[%emt 0:01:08]} Ba3 {[%emt 0:01:02]} 37. Qe5 {[%emt 0:00:46]} Qxe5 {[%emt 0:00:30]} 38. Bxe5 {[%emt 0:00:05]} Kf5 {[%emt 0:00:02]} 39. Bd6 {[%emt 0:00:18]} Bc1 {[%emt 0:01:06]} 40. Rd7 {[%emt 0:00:00]} 1-0

[Event "ROU-chT 1st League 2019"]
[Site "Mamaia"]
[Date "2019.09.25"]
[Round "5.29"]
[White "Ghimpu, Samuel-Timotei"]
[Black "Stoleriu, George"]
[Result "1/2-1/2"]
[ECO "C03"]
[WhiteElo "2158"]
[BlackElo "2351"]
[Annotator "NA"]
[PlyCount "27"]
[EventDate "2019.09.21"]
[EventType "team-tourn"]
[EventCountry "ROU"]
[SourceTitle "playchess.com"]
[Source "ChessBase"]
[SourceQuality "1"]
[TimeControl "40/5400+30:1800+30"]

1. e4 {[%emt 0:00:00]} e6 {[%emt 0:00:00]} 2. d4 {[%emt 0:00:00]} d5 {[%emt 0:00:00]} 3. Nd2 {[%emt 0:00:04]} Be7 {[%emt 0:01:10]} 4. Ngf3 {[%emt 0:02:10]} Nf6 {[%emt 0:00:14]} 5. Bd3 {[%emt 0:00:09]} c5 {[%emt 0:00:14]} 6. dxc5 {[%emt 0:00:06]} dxe4 {[%emt 0:05:51]} 7. Nxe4 {[%emt 0:00:36]} Nxe4 {[%emt 0:00:03]} 8. Bxe4 {[%emt 0:00:04]} Qxd1+ {[%emt 0:00:06]} 9. Kxd1 {[%emt 0:00:03]} Bxc5 {[%emt 0:00:16]} 10. Ke2 {[%emt 0:00:03]} Nd7 {[%emt 0:00:32]} 11. Be3 {[%emt 0:01:54]} Bxe3 {[%emt 0:02:27]} 12. Kxe3 {[%emt 0:00:02]} Nc5 {[%emt 0:03:25]} 13. Rhd1 {[%emt 0:01:58]} Nxe4 {[%emt 0:04:47]} 14. Kxe4 1/2-1/2

[Event "ROU-chT 1st League 2019"]
[Site "Mamaia"]
[Date "2019.09.25"]
[Round "5.30"]
[White "Petrisor, Adrian-Marian"]
[Black "Coca, Cristi-Iulian"]
[Result "1/2-1/2"]
[ECO "A05"]
[WhiteElo "2411"]
[BlackElo "2106"]
[Annotator "NA"]
[PlyCount "31"]
[EventDate "2019.09.21"]
[EventType "team-tourn"]
[EventCountry "ROU"]
[SourceTitle "playchess.com"]
[Source "ChessBase"]
[SourceQuality "1"]
[TimeControl "40/5400+30:1800+30"]

1. Nf3 {[%emt 0:00:00]} Nf6 {[%emt 0:00:00]} 2. g3 {[%emt 0:00:32]} g6 {[%emt 0:00:23]} 3. Bg2 {[%emt 0:00:06]} Bg7 {[%emt 0:00:07]} 4. O-O {[%emt 0:00:07]} O-O {[%emt 0:00:13]} 5. d4 {[%emt 0:00:05]} d6 {[%emt 0:01:00]} 6. c4 {[%emt 0:00:07]} a6 {[%emt 0:07:22]} 7. d5 {[%emt 0:06:38]} c6 {[%emt 0:01:49]} 8. Nc3 {[%emt 0:02:06]} cxd5 {[%emt 0:00:24]} 9. cxd5 {[%emt 0:00:04]} b5 {[%emt 0:13:07]} 10. a3 {[%emt 0:00:58]} Bb7 {[%emt 0:04:18]} 11. Nd4 {[%emt 0:01:16]} Qb6 {[%emt 0:06:10]} 12. Nc2 {[%emt 0:04:58]} Nbd7 {[%emt 0:03:01]} 13. Be3 {[%emt 0:00:53]} Qa5 {[%emt 0:04:35]} 14. Nb4 {[%emt 0:01:51]} Rac8 {[%emt 0:01:52]} 15. Rc1 {[%emt 0:08:20]} Rc4 {[%emt 0:08:26]} 16. Nc6 {[%emt 0:23:32]} 1/2-1/2

[Event "ROU-chT 1st League 2019"]
[Site "Mamaia"]
[Date "2019.09.26"]
[Round "6.1"]
[White "Kuzubov, Yuriy"]
[Black "Zubov, Alexander"]
[Result "1/2-1/2"]
[ECO "A50"]
[WhiteElo "2636"]
[BlackElo "2612"]
[Annotator "ChessBase"]
[PlyCount "76"]
[EventDate "2019.09.21"]
[EventType "team-tourn"]
[EventCountry "ROU"]
[SourceTitle "playchess.com"]
[Source "ChessBase"]
[SourceQuality "1"]
[TimeControl "40/5400+30:1800+30"]

1. d4 {[%emt 0:00:00]} Nf6 {[%emt 0:00:00]} 2. c4 {[%emt 0:00:00]} g6 {[%emt 0:00:00]} 3. f3 {[%emt 0:00:28]} e6 {[%emt 0:10:16]} 4. e4 {[%emt 0:03:35]} d5 {[%emt 0:00:06]} 5. cxd5 {[%emt 0:00:15]} exd5 {[%emt 0:00:05]} 6. Nc3 {[%emt 0:00:03]} dxe4 {[%emt 0:06:14]} 7. fxe4 {[%emt 0:00:26]} Bg7 {[%emt 0:08:08]} 8. Bg5 {[%emt 0:06:53]} h6 {[%emt 0:01:44]} 9. Bh4 {[%emt 0:02:59]} g5 {[%emt 0:01:53]} 10. Bg3 {[%emt 0:01:10]} O-O {[%emt 0:05:12]} 11. Nf3 {[%emt 0:40:42]} c5 {[%emt 0:08:12]} 12. dxc5 {[%emt 0:00:43]} Qa5 {[%emt 0:02:53]} 13. Qd2 {[%emt 0:01:12]} Re8 {[%emt 0:11:27]} 14. e5 {[%emt 0:06:29]} Nc6 {[%emt 0:04:55]} 15. Bb5 {[%emt 0:10:06]} Nh5 {[%emt 0:07:36]} 16. O-O {[%emt 0:05:48]} Nxg3 {[%emt 0:01:26]} 17. hxg3 {[%emt 0:00:06]} a6 {[%emt 0:01:38]} 18. Bxc6 {[%emt 0:00:47]} Qxc5+ {[%emt 0:00:30]} 19. Nd4 {[%emt 0:06:31]} bxc6 {[%emt 0:01:04]} 20. Qf2 {[%emt 0:00:03]} Be6 {[%emt 0:08:03]} 21. Ne4 {[%emt 0:04:19]} Qxe5 {[%emt 0:01:33]} 22. Nf6+ {[%emt 0:00:55]} Bxf6 {[%emt 0:01:12]} 23. Qxf6 {[%emt 0:00:04]} Qxf6 {[%emt 0:06:58]} 24. Rxf6 {[%emt 0:00:04]} Kg7 {[%emt 0:00:08]} 25. Rf3 {[%emt 0:06:53]} Bg4 {[%emt 0:07:07]} 26. Rf2 {[%emt 0:00:30]} c5 {[%emt 0:00:25]} 27. Nf5+ {[%emt 0:00:31]} Kg6 {[%emt 0:00:58]} 28. Nd6 {[%emt 0:00:05]} Re6 {[%emt 0:00:20]} 29. Nb7 {[%emt 0:01:17]} c4 {[%emt 0:01:42]} 30. Na5 {[%emt 0:01:04]} c3 {[%emt 0:01:27]} 31. bxc3 {[%emt 0:00:11]} Rc8 {[%emt 0:00:21]} 32. Rc1 {[%emt 0:00:47]} Re3 {[%emt 0:00:33]} 33. c4 {[%emt 0:00:44]} Rxg3 {[%emt 0:00:10]} 34. c5 {[%emt 0:00:41]} Be6 {[%emt 0:00:27]} 35. c6 {[%emt 0:00:38]} Ra3 {[%emt 0:01:25]} 36. Nc4 {[%emt 0:00:21]} Bxc4 {[%emt 0:01:15]} 37. Rxc4 {[%emt 0:00:03]} Rd3 {[%emt 0:00:36]} 38. c7 {[%emt 0:00:23]} Rd7 {[%emt 0:00:27]} 1/2-1/2

[Event "ROU-chT 1st League 2019"]
[Site "Mamaia"]
[Date "2019.09.26"]
[Round "6.2"]
[White "Sivuk, Vitaly"]
[Black "Baklan, Vladimir"]
[Result "1/2-1/2"]
[ECO "E59"]
[WhiteElo "2559"]
[BlackElo "2604"]
[Annotator "ChessBase"]
[PlyCount "58"]
[EventDate "2019.09.21"]
[EventType "team-tourn"]
[EventCountry "ROU"]
[SourceTitle "playchess.com"]
[Source "ChessBase"]
[SourceQuality "1"]
[TimeControl "40/5400+30:1800+30"]

1. d4 {[%emt 0:00:00]} Nf6 {[%emt 0:00:00]} 2. c4 {[%emt 0:00:00]} e6 {[%emt 0:00:00]} 3. Nc3 {[%emt 0:00:00]} Bb4 {[%emt 0:00:00]} 4. e3 {[%emt 0:00:08]} O-O {[%emt 0:00:01]} 5. Bd3 {[%emt 0:00:09]} c5 {[%emt 0:00:37]} 6. Nf3 {[%emt 0:00:10]} d5 {[%emt 0:01:15]} 7. O-O {[%emt 0:00:12]} dxc4 {[%emt 0:05:16]} 8. Bxc4 {[%emt 0:02:18]} Nc6 {[%emt 0:00:50]} 9. a3 {[%emt 0:00:16]} Bxc3 {[%emt 0:00:05]} 10. bxc3 {[%emt 0:00:07]} Qc7 {[%emt 0:00:02]} 11. Bb2 {[%emt 0:00:36]} e5 {[%emt 0:02:06]} 12. h3 {[%emt 0:00:39]} Bf5 {[%emt 0:02:07]} 13. Bb5 {[%emt 0:00:31]} e4 {[%emt 0:00:44]} 14. Nd2 {[%emt 0:00:11]} Rad8 {[%emt 0:00:52]} 15. Rc1 {[%emt 0:00:28]} h6 {[%emt 0:12:50]} 16. a4 {[%emt 0:02:08]} Rfe8 {[%emt 0:07:23]} 17. Ba3 {[%emt 0:16:32]} b6 {[%emt 0:02:32]} 18. f4 {[%emt 0:09:44]} Bd7 {[%emt 0:05:08]} 19. Qe2 {[%emt 0:10:50]} Na5 {[%emt 0:04:08]} 20. Rfd1 {[%emt 0:06:07]} a6 {[%emt 0:12:21]} 21. Bxd7 {[%emt 0:02:01]} Qxd7 {[%emt 0:00:06]} 22. dxc5 {[%emt 0:08:27]} Qxa4 {[%emt 0:05:12]} 23. Bb4 {[%emt 0:00:45]} Nb7 {[%emt 0:06:06]} 24. cxb6 {[%emt 0:17:27]} a5 {[%emt 0:00:29]} 25. Qa6 {[%emt 0:01:48]} Rd7 {[%emt 0:07:20]} 26. Ra1 {[%emt 0:04:33]} Qc2 {[%emt 0:00:20]} 27. Rac1 {[%emt 0:00:12]} Qa4 {[%emt 0:00:30]} 28. Ra1 {[%emt 0:00:05]} Qc2 {[%emt 0:01:31]} 29. Rac1 {[%emt 0:00:06]} Qa4 1/2-1/2

[Event "ROU-chT 1st League 2019"]
[Site "Mamaia"]
[Date "2019.09.26"]
[Round "6.3"]
[White "Rogozenco, Dorian"]
[Black "Georgescu, Tiberiu-Marian"]
[Result "1-0"]
[ECO "D35"]
[WhiteElo "2491"]
[BlackElo "2508"]
[Annotator "ChessBase"]
[PlyCount "131"]
[EventDate "2019.09.21"]
[EventType "team-tourn"]
[EventCountry "ROU"]
[SourceTitle "playchess.com"]
[Source "ChessBase"]
[SourceQuality "1"]
[TimeControl "40/5400+30:1800+30"]

1. d4 {[%emt 0:00:00]} d5 {[%emt 0:00:00]} 2. c4 {[%emt 0:00:00]} e6 {[%emt 0:00:00]} 3. Nc3 {[%emt 0:00:19]} Nf6 {[%emt 0:00:00]} 4. cxd5 {[%emt 0:01:35]} exd5 {[%emt 0:00:00]} 5. Bg5 {[%emt 0:00:32]} c6 {[%emt 0:00:22]} 6. e3 {[%emt 0:01:56]} Be7 {[%emt 0:00:09]} 7. Qc2 {[%emt 0:01:35]} Nbd7 {[%emt 0:00:57]} 8. Nf3 {[%emt 0:02:22]} h6 {[%emt 0:04:16]} 9. Bh4 {[%emt 0:02:05]} Nh5 {[%emt 0:02:05]} 10. Bxe7 {[%emt 0:00:58]} Qxe7 {[%emt 0:00:04]} 11. O-O-O {[%emt 0:00:29]} Nb6 {[%emt 0:01:58]} 12. Ne5 {[%emt 0:09:21]} Nf6 {[%emt 0:01:16]} 13. Be2 {[%emt 0:07:01]} Be6 {[%emt 0:10:47]} 14. Rhe1 {[%emt 0:19:16]} O-O-O {[%emt 0:07:37]} 15. Na4 {[%emt 0:00:15]} Nfd7 {[%emt 0:04:55]} 16. Nxd7 {[%emt 0:06:19]} Nxd7 {[%emt 0:03:09]} 17. Bd3 {[%emt 0:05:18]} Kb8 {[%emt 0:02:54]} 18. Kb1 {[%emt 0:00:04]} h5 {[%emt 0:05:16]} 19. Rc1 {[%emt 0:00:35]} Rc8 {[%emt 0:00:43]} 20. Ka1 {[%emt 0:00:05]} Rc7 {[%emt 0:03:10]} 21. Qd2 {[%emt 0:11:00]} Qd6 {[%emt 0:11:50]} 22. h3 {[%emt 0:04:09]} Qh2 {[%emt 0:06:45]} 23. Bf1 {[%emt 0:00:56]} Qd6 {[%emt 0:08:05]} 24. Bd3 {[%emt 0:01:33]} h4 {[%emt 0:03:25]} 25. Rc3 {[%emt 0:01:30]} Qb4 {[%emt 0:01:31]} 26. Qd1 {[%emt 0:02:45]} Ka8 {[%emt 0:06:16]} 27. Nc5 {[%emt 0:13:03]} Nxc5 {[%emt 0:01:16]} 28. Rxc5 {[%emt 0:00:05]} g6 {[%emt 0:03:31]} 29. Qe2 {[%emt 0:01:39]} Kb8 {[%emt 0:04:14]} 30. Rec1 {[%emt 0:00:22]} Rh5 {[%emt 0:02:29]} 31. Bb5 {[%emt 0:02:02]} a6 {[%emt 0:04:09]} 32. a3 {[%emt 0:01:48]} Qxb5 {[%emt 0:00:38]} 33. Rxb5 {[%emt 0:00:05]} axb5 {[%emt 0:00:54]} 34. Qe1 {[%emt 0:02:26]} Rg5 {[%emt 0:00:56]} 35. Qh1 {[%emt 0:01:18]} Kc8 {[%emt 0:00:31]} 36. Qh2 {[%emt 0:00:17]} Kd7 {[%emt 0:00:12]} 37. Rg1 {[%emt 0:01:49]} Rf5 {[%emt 0:00:33]} 38. f3 {[%emt 0:01:10]} Rc8 {[%emt 0:00:25]} 39. e4 {[%emt 0:00:19]} Rh5 {[%emt 0:01:04]} 40. Qf4 {[%emt 0:00:00]} Ra8 {[%emt 0:00:00]} 41. Kb1 {[%emt 0:04:25]} b4 {[%emt 0:08:10]} 42. axb4 {[%emt 0:03:06]} dxe4 {[%emt 0:01:28]} 43. fxe4 {[%emt 0:02:37]} Rb5 {[%emt 0:06:58]} 44. d5 {[%emt 0:06:10]} cxd5 {[%emt 0:06:50]} 45. Rc1 {[%emt 0:00:07]} Rc8 {[%emt 0:03:00]} 46. Rxc8 {[%emt 0:01:13]} Kxc8 {[%emt 0:00:04]} 47. e5 {[%emt 0:00:54]} Rb6 {[%emt 0:05:26]} 48. Qxh4 {[%emt 0:04:20]} Rc6 {[%emt 0:00:46]} 49. b5 {[%emt 0:05:46]} Bf5+ {[%emt 0:02:03]} 50. Ka2 {[%emt 0:00:17]} Re6 {[%emt 0:00:13]} 51. Qd4 {[%emt 0:03:37]} Re7 {[%emt 0:01:14]} 52. g4 {[%emt 0:00:53]} Be6 {[%emt 0:00:04]} 53. b6 {[%emt 0:01:06]} Kd8 {[%emt 0:01:02]} 54. h4 {[%emt 0:00:23]} Ke8 {[%emt 0:00:41]} 55. h5 {[%emt 0:00:15]} gxh5 {[%emt 0:00:31]} 56. gxh5 {[%emt 0:00:06]} Bf5 {[%emt 0:00:21]} 57. Qa4+ {[%emt 0:01:39]} Kf8 {[%emt 0:00:28]} 58. Qa8+ {[%emt 0:00:21]} Re8 {[%emt 0:00:40]} 59. Qxb7 {[%emt 0:00:06]} d4 {[%emt 0:00:10]} 60. Qc7 {[%emt 0:00:47]} d3 {[%emt 0:00:56]} 61. b7 {[%emt 0:01:06]} d2 {[%emt 0:00:02]} 62. Qd6+ {[%emt 0:00:27]} Kg7 {[%emt 0:00:18]} 63. Qxd2 {[%emt 0:00:49]} Be6+ {[%emt 0:00:01]} 64. Ka3 {[%emt 0:00:26]} Rb8 {[%emt 0:00:09]} 65. Qg5+ {[%emt 0:00:29]} Kf8 {[%emt 0:00:02]} 66. h6 {[%emt 0:00:18]} 1-0

[Event "ROU-chT 1st League 2019"]
[Site "Mamaia"]
[Date "2019.09.26"]
[Round "6.4"]
[White "David, Alexandru-Vasile"]
[Black "Manolache, Marius"]
[Result "0-1"]
[ECO "A43"]
[WhiteElo "2424"]
[BlackElo "2548"]
[Annotator "ChessBase"]
[PlyCount "120"]
[EventDate "2019.09.21"]
[EventType "team-tourn"]
[EventCountry "ROU"]
[SourceTitle "playchess.com"]
[Source "ChessBase"]
[SourceQuality "1"]
[TimeControl "40/5400+30:1800+30"]

1. d4 {[%emt 0:00:00]} Nf6 {[%emt 0:00:00]} 2. c4 {[%emt 0:00:04]} c5 {[%emt 0:00:00]} 3. d5 {[%emt 0:00:30]} d6 {[%emt 0:00:02]} 4. Nc3 {[%emt 0:00:08]} g6 {[%emt 0:00:12]} 5. e4 {[%emt 0:00:19]} Bg7 {[%emt 0:00:07]} 6. Nf3 {[%emt 0:00:19]} O-O {[%emt 0:00:08]} 7. h3 {[%emt 0:00:04]} e6 {[%emt 0:00:09]} 8. Bd3 {[%emt 0:00:07]} Na6 {[%emt 0:03:41]} 9. O-O {[%emt 0:05:06]} Nc7 {[%emt 0:00:24]} 10. Bg5 {[%emt 0:00:58]} h6 {[%emt 0:01:03]} 11. Be3 {[%emt 0:01:01]} exd5 {[%emt 0:00:30]} 12. cxd5 {[%emt 0:03:12]} b5 {[%emt 0:08:23]} 13. a3 {[%emt 0:02:13]} Re8 {[%emt 0:18:12]} 14. b4 {[%emt 0:04:00]} Nxe4 {[%emt 0:15:54]} 15. Nxe4 {[%emt 0:00:16]} Nxd5 {[%emt 0:00:05]} 16. Rc1 {[%emt 0:01:52]} Nxe3 {[%emt 0:03:06]} 17. fxe3 {[%emt 0:00:10]} Bb7 {[%emt 0:00:22]} 18. bxc5 {[%emt 0:16:35]} Bxe4 {[%emt 0:03:14]} 19. Bxe4 {[%emt 0:01:47]} Rxe4 {[%emt 0:00:06]} 20. cxd6 {[%emt 0:04:14]} Re6 {[%emt 0:04:21]} 21. d7 {[%emt 0:01:28]} Re7 {[%emt 0:00:14]} 22. Qd5 {[%emt 0:02:24]} Rxd7 {[%emt 0:00:09]} 23. Qxb5 {[%emt 0:00:04]} Re7 {[%emt 0:01:50]} 24. Qc4 {[%emt 0:08:53]} Qe8 {[%emt 0:04:19]} 25. Qa6 {[%emt 0:18:05]} Rxe3 {[%emt 0:03:20]} 26. Rc7 {[%emt 0:00:08]} Re7 {[%emt 0:03:21]} 27. Rfc1 {[%emt 0:01:09]} Rxc7 {[%emt 0:00:18]} 28. Rxc7 {[%emt 0:00:06]} Bd4+ {[%emt 0:05:36]} 29. Kh1 {[%emt 0:00:21]} Bb6 {[%emt 0:02:46]} 30. Rc1 {[%emt 0:01:25]} Rd8 {[%emt 0:00:26]} 31. Qc4 {[%emt 0:00:31]} Qd7 {[%emt 0:00:38]} 32. Qf4 {[%emt 0:06:06]} Kg7 {[%emt 0:05:22]} 33. Qe5+ {[%emt 0:01:06]} f6 {[%emt 0:02:17]} 34. Qc3 {[%emt 0:01:59]} g5 {[%emt 0:02:06]} 35. Rf1 {[%emt 0:02:51]} Qd6 {[%emt 0:03:11]} 36. Nh2 {[%emt 0:07:19]} Re8 {[%emt 0:00:56]} 37. Qf3 {[%emt 0:02:48]} Re3 {[%emt 0:05:18]} 38. Qf5 {[%emt 0:04:02]} Qe6 {[%emt 0:00:21]} 39. Qb1 {[%emt 0:03:47]} Qe4 {[%emt 0:01:53]} 40. Qb5 {[%emt 0:00:00]} Qd3 {[%emt 0:00:00]} 41. Qc6 {[%emt 0:03:35]} Bd8 {[%emt 0:06:13]} 42. Qb7+ {[%emt 0:02:24]} Re7 {[%emt 0:00:51]} 43. Qc6 {[%emt 0:01:08]} Rc7 {[%emt 0:03:10]} 44. Qe8 {[%emt 0:02:48]} Be7 {[%emt 0:02:34]} 45. a4 {[%emt 0:01:11]} Bb4 {[%emt 0:05:37]} 46. Qb8 {[%emt 0:01:46]} Ba5 {[%emt 0:01:18]} 47. Qb2 {[%emt 0:01:41]} Bc3 {[%emt 0:02:33]} 48. Qb3 {[%emt 0:00:05]} Rd7 {[%emt 0:00:51]} 49. Qe6 {[%emt 0:06:57]} Be5 {[%emt 0:00:27]} 50. Re1 {[%emt 0:01:33]} Qd6 {[%emt 0:01:10]} 51. Qxd6 {[%emt 0:00:31]} Rxd6 {[%emt 0:00:05]} 52. Kg1 {[%emt 0:02:22]} h5 {[%emt 0:02:47]} 53. g4 {[%emt 0:01:48]} Rd3 {[%emt 0:01:55]} 54. Rb1 {[%emt 0:02:14]} Rxh3 {[%emt 0:00:25]} 55. Rb7+ {[%emt 0:00:04]} Kh6 {[%emt 0:00:15]} 56. Nf1 {[%emt 0:00:11]} Ra3 {[%emt 0:00:46]} 57. Kg2 {[%emt 0:00:50]} hxg4 {[%emt 0:00:54]} 58. Rxa7 {[%emt 0:00:30]} Ra2+ {[%emt 0:00:05]} 59. Kh1 {[%emt 0:00:16]} g3 {[%emt 0:00:08]} 60. Ne3 {[%emt 0:00:10]} g2+ {[%emt 0:00:15]} 0-1

[Event "ROU-chT 1st League 2019"]
[Site "Mamaia"]
[Date "2019.09.26"]
[Round "6.5"]
[White "Anton, Teodor"]
[Black "Stoleriu, George"]
[Result "1-0"]
[ECO "E11"]
[WhiteElo "2445"]
[BlackElo "2351"]
[Annotator "NA"]
[PlyCount "45"]
[EventDate "2019.09.21"]
[EventType "team-tourn"]
[EventCountry "ROU"]
[SourceTitle "playchess.com"]
[Source "ChessBase"]
[SourceQuality "1"]
[TimeControl "40/5400+30:1800+30"]

1. Nf3 {[%emt 0:00:00]} Nf6 {[%emt 0:00:00]} 2. c4 {[%emt 0:00:26]} e6 {[%emt 0:00:00]} 3. d4 {[%emt 0:00:20]} Bb4+ {[%emt 0:00:31]} 4. Nbd2 {[%emt 0:00:17]} O-O {[%emt 0:00:26]} 5. a3 {[%emt 0:00:25]} Be7 {[%emt 0:00:53]} 6. e4 {[%emt 0:02:47]} d6 {[%emt 0:00:23]} 7. Bd3 {[%emt 0:03:21]} Nfd7 {[%emt 0:01:59]} 8. b4 {[%emt 0:02:59]} e5 {[%emt 0:03:21]} 9. d5 {[%emt 0:02:00]} a5 {[%emt 0:03:55]} 10. Bb2 {[%emt 0:03:01]} c6 {[%emt 0:03:07]} 11. O-O {[%emt 0:02:10]} Nb6 {[%emt 0:18:50]} 12. c5 {[%emt 0:07:35]} dxc5 {[%emt 0:02:31]} 13. bxc5 {[%emt 0:03:23]} Bxc5 {[%emt 0:01:12]} 14. Nxe5 {[%emt 0:02:54]} f6 {[%emt 0:25:08]} 15. Nef3 {[%emt 0:05:11]} cxd5 {[%emt 0:04:04]} 16. Qc2 {[%emt 0:02:11]} dxe4 {[%emt 0:08:54]} 17. Nxe4 {[%emt 0:06:30]} Be7 {[%emt 0:00:15]} 18. Rad1 {[%emt 0:00:25]} Kh8 {[%emt 0:01:58]} 19. Ng3 {[%emt 0:06:07]} Bg4 {[%emt 0:03:22]} 20. Bxh7 {[%emt 0:03:00]} Qc8 {[%emt 0:00:05]} 21. Qg6 {[%emt 0:06:17]} Qe8 {[%emt 0:06:01]} 22. Qxg4 {[%emt 0:01:14]} Kxh7 {[%emt 0:00:02]} 23. Qh3+ {[%emt 0:01:32]} 1-0